Workbook

Sheet Retirement Calculator
A1: =IF(OR(I7="",I8="",I9="",I10="",I11="",I12="",I8<=I7),FALSE,TRUE) -> TRUE
A2: Control
B3: RETIREMENT SAVINGS CALCULATOR
C6: Inputs
C7: Current Age: | I7: 35
C8: Retirement Age: | I8: 58
C9: Investments up to Now: | I9: 10000
C10: Expected Annual Return: | I10: 6.00 | L10: %
C11: Annual Payments: | I11: 2,000.00
C12: # of Payments to be made: | I12: 15
C16: Outcome
C17: Years until Retirement: | I17: =IF(OR(I7="",I8="",I8<=I7),"",I8-I7) -> 23
C18: Estimated Values at Retirement
D19: Invested | I19: Interest Earned
D20: =IF(A1,INDEX(L_Invested,I17,1),"") -> 40,000.00 | I20: =IF(A1,INDEX(L_CumInt,I17,1),"") -> 72,394.22
C21: =IF(A1,INDEX(L_Balance,I17+1,1)) -> 112,394.22
B24: Year | D24: Age | F24: Rate | I24: Invested (Payment) | L24: Cumulative Payments | O24: Interest | R24: Cumulative Interest | U24: Balance
A26: 0 | B26: =IF($A$1,A26,"") -> 0 | F26: =IF(D26="","",$I$10) ->  | I26: =IF(I9="",0,I9) -> 10,000.00 | L26: =I26 -> 10,000.00 | O26: 0.00 | R26: 0.00 | U26: =I26 -> 10,000.00
A27: 1 | B27: =IF($A$1,A27,"") -> 1 | D27: =IF(B27="","",B27+$I$7) -> 36 | F27: =IF(D27="","",$I$10/100) -> 6.00% | I27: =IF(F27="","",IF($I$12>=A27,$I$11,0)) -> 2,000.00 | L27: =IF(I27="","",SUM(I$26:I27)) -> 12,000.00 | O27: =IF(L27="","",U26*F27) -> 600.00 | R27: =IF(O27="","",SUM(O$26:O27)) -> 600.00 | U27: =IF(R27="","",U26+I27+O27) -> 12,600.00
A28: 2 | B28: =IF($A$1,A28,"") -> 2 | D28: =IF(B28="","",B28+$I$7) -> 37 | F28: 6.00% | I28: 2,000.00 | L28: =IF(I28="","",SUM(I$26:I28)) -> 14,000.00 | O28: =IF(I28="","",U27*F28) -> 756.00 | R28: =IF(O28="","",SUM(O$26:O28)) -> 1,356.00 | U28: =IF(R28="","",U27+I28+O28) -> 15,356.00
A29: 3 | B29: =IF($A$1,A29,"") -> 3 | D29: =IF(B29="","",B29+$I$7) -> 38 | F29: 6.00% | I29: 2,000.00 | L29: =IF(I29="","",SUM(I$26:I29)) -> 16,000.00 | O29: 921.36 | R29: =IF(O29="","",SUM(O$26:O29)) -> 2,277.36 | U29: 18,277.36
A30: 4 | B30: =IF($A$1,A30,"") -> 4 | D30: 39 | F30: 6.00% | I30: 2,000.00 | L30: =IF(I30="","",SUM(I$26:I30)) -> 18,000.00 | O30: 1,096.64 | R30: =IF(O30="","",SUM(O$26:O30)) -> 3,374.00 | U30: 21,374.00
A31: 5 | B31: =IF($A$1,A31,"") -> 5 | D31: 40 | F31: 6.00% | I31: 2,000.00 | L31: =IF(I31="","",SUM(I$26:I31)) -> 20,000.00 | O31: 1,282.44 | R31: =IF(O31="","",SUM(O$26:O31)) -> 4,656.44 | U31: 24,656.44
A32: 6 | B32: 6 | D32: 41 | F32: 6.00% | I32: 2,000.00 | L32: =IF(I32="","",SUM(I$26:I32)) -> 22,000.00 | O32: 1,479.39 | R32: =IF(O32="","",SUM(O$26:O32)) -> 6,135.83 | U32: 28,135.83
A33: 7 | B33: 7 | D33: 42 | F33: 6.00% | I33: 2,000.00 | L33: =IF(I33="","",SUM(I$26:I33)) -> 24,000.00 | O33: 1,688.15 | R33: =IF(O33="","",SUM(O$26:O33)) -> 7,823.98 | U33: 31,823.98
A34: 8 | B34: 8 | D34: 43 | F34: 6.00% | I34: 2,000.00 | L34: =IF(I34="","",SUM(I$26:I34)) -> 26,000.00 | O34: 1,909.44 | R34: =IF(O34="","",SUM(O$26:O34)) -> 9,733.42 | U34: 35,733.42
A35: 9 | B35: 9 | D35: 44 | F35: 6.00% | I35: 2,000.00 | L35: =IF(I35="","",SUM(I$26:I35)) -> 28,000.00 | O35: 2,144.00 | R35: =IF(O35="","",SUM(O$26:O35)) -> 11,877.42 | U35: 39,877.42
A36: 10 | B36: 10 | D36: 45 | F36: 6.00% | I36: 2,000.00 | L36: =IF(I36="","",SUM(I$26:I36)) -> 30,000.00 | O36: 2,392.65 | R36: =IF(O36="","",SUM(O$26:O36)) -> 14,270.07 | U36: 44,270.07
A37: 11 | B37: 11 | D37: 46 | F37: 6.00% | I37: 2,000.00 | L37: =IF(I37="","",SUM(I$26:I37)) -> 32,000.00 | O37: 2,656.20 | R37: =IF(O37="","",SUM(O$26:O37)) -> 16,926.27 | U37: 48,926.27
A38: 12 | B38: 12 | D38: 47 | F38: 6.00% | I38: 2,000.00 | L38: =IF(I38="","",SUM(I$26:I38)) -> 34,000.00 | O38: 2,935.58 | R38: =IF(O38="","",SUM(O$26:O38)) -> 19,861.85 | U38: 53,861.85
A39: 13 | B39: 13 | D39: 48 | F39: 6.00% | I39: 2,000.00 | L39: =IF(I39="","",SUM(I$26:I39)) -> 36,000.00 | O39: 3,231.71 | R39: =IF(O39="","",SUM(O$26:O39)) -> 23,093.56 | U39: 59,093.56
A40: 14 | B40: 14 | D40: 49 | F40: 6.00% | I40: 2,000.00 | L40: =IF(I40="","",SUM(I$26:I40)) -> 38,000.00 | O40: 3,545.61 | R40: =IF(O40="","",SUM(O$26:O40)) -> 26,639.17 | U40: 64,639.17
A41: 15 | B41: 15 | D41: 50 | F41: 6.00% | I41: 2,000.00 | L41: =IF(I41="","",SUM(I$26:I41)) -> 40,000.00 | O41: 3,878.35 | R41: =IF(O41="","",SUM(O$26:O41)) -> 30,517.52 | U41: 70,517.52
A42: 16 | B42: 16 | D42: 51 | F42: 6.00% | I42: 0.00 | L42: =IF(I42="","",SUM(I$26:I42)) -> 40,000.00 | O42: 4,231.05 | R42: =IF(O42="","",SUM(O$26:O42)) -> 34,748.57 | U42: 74,748.57
A43: 17 | B43: 17 | D43: 52 | F43: 6.00% | I43: 0.00 | L43: =IF(I43="","",SUM(I$26:I43)) -> 40,000.00 | O43: 4,484.91 | R43: =IF(O43="","",SUM(O$26:O43)) -> 39,233.49 | U43: 79,233.49
A44: 18 | B44: 18 | D44: 53 | F44: 6.00% | I44: 0.00 | L44: =IF(I44="","",SUM(I$26:I44)) -> 40,000.00 | O44: 4,754.01 | R44: =IF(O44="","",SUM(O$26:O44)) -> 43,987.50 | U44: 83,987.50
A45: 19 | B45: 19 | D45: 54 | F45: 6.00% | I45: 0.00 | L45: =IF(I45="","",SUM(I$26:I45)) -> 40,000.00 | O45: 5,039.25 | R45: =IF(O45="","",SUM(O$26:O45)) -> 49,026.75 | U45: 89,026.75
A46: 20 | B46: 20 | D46: 55 | F46: 6.00% | I46: 0.00 | L46: =IF(I46="","",SUM(I$26:I46)) -> 40,000.00 | O46: 5,341.60 | R46: =IF(O46="","",SUM(O$26:O46)) -> 54,368.35 | U46: 94,368.35
A47: 21 | B47: 21 | D47: 56 | F47: 6.00% | I47: 0.00 | L47: =IF(I47="","",SUM(I$26:I47)) -> 40,000.00 | O47: 5,662.10 | R47: =IF(O47="","",SUM(O$26:O47)) -> 60,030.45 | U47: 100,030.45
A48: 22 | B48: 22 | D48: 57 | F48: 6.00% | I48: 0.00 | L48: =IF(I48="","",SUM(I$26:I48)) -> 40,000.00 | O48: 6,001.83 | R48: =IF(O48="","",SUM(O$26:O48)) -> 66,032.28 | U48: 106,032.28
A49: 23 | B49: 23 | D49: 58 | F49: 6.00% | I49: 0.00 | L49: =IF(I49="","",SUM(I$26:I49)) -> 40,000.00 | O49: 6,361.94 | R49: =IF(O49="","",SUM(O$26:O49)) -> 72,394.22 | U49: 112,394.22
A50: 24 | B50: 24 | D50: 59 | F50: 6.00% | I50: 0.00 | L50: =IF(I50="","",SUM(I$26:I50)) -> 40,000.00 | O50: 6,743.65 | R50: =IF(O50="","",SUM(O$26:O50)) -> 79,137.87 | U50: 119,137.87
A51: 25 | B51: 25 | D51: 60 | F51: 6.00% | I51: 0.00 | L51: =IF(I51="","",SUM(I$26:I51)) -> 40,000.00 | O51: 7,148.27 | R51: =IF(O51="","",SUM(O$26:O51)) -> 86,286.14 | U51: 126,286.14
A52: 26 | B52: 26 | D52: 61 | F52: 6.00% | I52: 0.00 | L52: =IF(I52="","",SUM(I$26:I52)) -> 40,000.00 | O52: 7,577.17 | R52: =IF(O52="","",SUM(O$26:O52)) -> 93,863.31 | U52: 133,863.31
A53: 27 | B53: 27 | D53: 62 | F53: 6.00% | I53: 0.00 | L53: =IF(I53="","",SUM(I$26:I53)) -> 40,000.00 | O53: 8,031.80 | R53: =IF(O53="","",SUM(O$26:O53)) -> 101,895.11 | U53: 141,895.11
A54: 28 | B54: 28 | D54: 63 | F54: 6.00% | I54: 0.00 | L54: =IF(I54="","",SUM(I$26:I54)) -> 40,000.00 | O54: 8,513.71 | R54: =IF(O54="","",SUM(O$26:O54)) -> 110,408.81 | U54: 150,408.81
A55: 29 | B55: 29 | D55: 64 | F55: 6.00% | I55: 0.00 | L55: =IF(I55="","",SUM(I$26:I55)) -> 40,000.00 | O55: 9,024.53 | R55: =IF(O55="","",SUM(O$26:O55)) -> 119,433.34 | U55: 159,433.34
A56: 30 | B56: 30 | D56: 65 | F56: 6.00% | I56: 0.00 | L56: =IF(I56="","",SUM(I$26:I56)) -> 40,000.00 | O56: 9,566.00 | R56: =IF(O56="","",SUM(O$26:O56)) -> 128,999.34 | U56: 168,999.34
A57: 31 | B57: 31 | D57: 66 | F57: 6.00% | I57: 0.00 | L57: =IF(I57="","",SUM(I$26:I57)) -> 40,000.00 | O57: 10,139.96 | R57: =IF(O57="","",SUM(O$26:O57)) -> 139,139.31 | U57: 179,139.31
A58: 32 | B58: 32 | D58: 67 | F58: 6.00% | I58: 0.00 | L58: =IF(I58="","",SUM(I$26:I58)) -> 40,000.00 | O58: 10,748.36 | R58: =IF(O58="","",SUM(O$26:O58)) -> 149,887.66 | U58: 189,887.66
A59: 33 | B59: 33 | D59: 68 | F59: =IF(D59="","",$I$10/100) -> 6.00% | I59: =IF(F59="","",IF($I$12>=A59,$I$11,0)) -> 0.00 | L59: =IF(I59="","",SUM(I$26:I59)) -> 40,000.00 | O59: 11,393.26 | R59: =IF(O59="","",SUM(O$26:O59)) -> 161,280.92 | U59: 201,280.92
A60: 34 | B60: 34 | D60: 69 | F60: 6.00% | I60: 0.00 | L60: =IF(I60="","",SUM(I$26:I60)) -> 40,000.00 | O60: =IF(I60="","",U59*F60) -> 12,076.86 | R60: =IF(O60="","",SUM(O$26:O60)) -> 173,357.78 | U60: 213,357.78
A61: 35 | B61: 35 | D61: 70 | F61: 6.00% | I61: 0.00 | L61: =IF(I61="","",SUM(I$26:I61)) -> 40,000.00 | O61: 12,801.47 | R61: =IF(O61="","",SUM(O$26:O61)) -> 186,159.25 | U61: 226,159.25
A62: 36 | B62: 36 | D62: 71 | F62: 6.00% | I62: 0.00 | L62: =IF(I62="","",SUM(I$26:I62)) -> 40,000.00 | O62: 13,569.55 | R62: =IF(O62="","",SUM(O$26:O62)) -> 199,728.80 | U62: 239,728.80
A63: 37 | B63: 37 | D63: 72 | F63: 6.00% | I63: 0.00 | L63: =IF(I63="","",SUM(I$26:I63)) -> 40,000.00 | O63: 14,383.73 | R63: =IF(O63="","",SUM(O$26:O63)) -> 214,112.53 | U63: 254,112.53
A64: 38 | B64: 38 | D64: 73 | F64: 6.00% | I64: 0.00 | L64: =IF(I64="","",SUM(I$26:I64)) -> 40,000.00 | O64: 15,246.75 | R64: =IF(O64="","",SUM(O$26:O64)) -> 229,359.28 | U64: 269,359.28
A65: 39 | B65: 39 | D65: 74 | F65: 6.00% | I65: 0.00 | L65: =IF(I65="","",SUM(I$26:I65)) -> 40,000.00 | O65: 16,161.56 | R65: =IF(O65="","",SUM(O$26:O65)) -> 245,520.84 | U65: 285,520.84
A66: 40 | B66: 40 | D66: 75 | F66: 6.00% | I66: 0.00 | L66: =IF(I66="","",SUM(I$26:I66)) -> 40,000.00 | O66: 17,131.25 | R66: =IF(O66="","",SUM(O$26:O66)) -> 262,652.09 | U66: 302,652.09
A67: 41 | B67: 41 | D67: 76 | F67: 6.00% | I67: 0.00 | L67: =IF(I67="","",SUM(I$26:I67)) -> 40,000.00 | O67: 18,159.13 | R67: =IF(O67="","",SUM(O$26:O67)) -> 280,811.21 | U67: 320,811.21
A68: 42 | B68: 42 | D68: 77 | F68: 6.00% | I68: 0.00 | L68: =IF(I68="","",SUM(I$26:I68)) -> 40,000.00 | O68: 19,248.67 | R68: =IF(O68="","",SUM(O$26:O68)) -> 300,059.88 | U68: 340,059.88
A69: 43 | B69: 43 | D69: 78 | F69: 6.00% | I69: 0.00 | L69: =IF(I69="","",SUM(I$26:I69)) -> 40,000.00 | O69: 20,403.59 | R69: =IF(O69="","",SUM(O$26:O69)) -> 320,463.48 | U69: 360,463.48
A70: 44 | B70: 44 | D70: 79 | F70: 6.00% | I70: 0.00 | L70: =IF(I70="","",SUM(I$26:I70)) -> 40,000.00 | O70: 21,627.81 | R70: =IF(O70="","",SUM(O$26:O70)) -> 342,091.29 | U70: 382,091.29
A71: 45 | B71: 45 | D71: 80 | F71: 6.00% | I71: 0.00 | L71: =IF(I71="","",SUM(I$26:I71)) -> 40,000.00 | O71: 22,925.48 | R71: =IF(O71="","",SUM(O$26:O71)) -> 365,016.76 | U71: 405,016.76
A72: 46 | B72: 46 | D72: 81 | F72: 6.00% | I72: 0.00 | L72: =IF(I72="","",SUM(I$26:I72)) -> 40,000.00 | O72: 24,301.01 | R72: =IF(O72="","",SUM(O$26:O72)) -> 389,317.77 | U72: 429,317.77
A73: 47 | B73: 47 | D73: 82 | F73: 6.00% | I73: 0.00 | L73: =IF(I73="","",SUM(I$26:I73)) -> 40,000.00 | O73: 25,759.07 | R73: =IF(O73="","",SUM(O$26:O73)) -> 415,076.84 | U73: 455,076.84
A74: 48 | B74: 48 | D74: 83 | F74: 6.00% | I74: 0.00 | L74: =IF(I74="","",SUM(I$26:I74)) -> 40,000.00 | O74: 27,304.61 | R74: =IF(O74="","",SUM(O$26:O74)) -> 442,381.45 | U74: 482,381.45
A75: 49 | B75: 49 | D75: 84 | F75: 6.00% | I75: 0.00 | L75: =IF(I75="","",SUM(I$26:I75)) -> 40,000.00 | O75: 28,942.89 | R75: =IF(O75="","",SUM(O$26:O75)) -> 471,324.33 | U75: 511,324.33
A76: 50 | B76: 50 | D76: 85 | F76: 6.00% | I76: 0.00 | L76: =IF(I76="","",SUM(I$26:I76)) -> 40,000.00 | O76: 30,679.46 | R76: =IF(O76="","",SUM(O$26:O76)) -> 502,003.79 | U76: 542,003.79
A77: 51 | B77: 51 | D77: 86 | F77: 6.00% | I77: 0.00 | L77: =IF(I77="","",SUM(I$26:I77)) -> 40,000.00 | O77: 32,520.23 | R77: =IF(O77="","",SUM(O$26:O77)) -> 534,524.02 | U77: 574,524.02
A78: 52 | B78: 52 | D78: 87 | F78: 6.00% | I78: 0.00 | L78: =IF(I78="","",SUM(I$26:I78)) -> 40,000.00 | O78: 34,471.44 | R78: =IF(O78="","",SUM(O$26:O78)) -> 568,995.46 | U78: 608,995.46
A79: 53 | B79: 53 | D79: 88 | F79: 6.00% | I79: 0.00 | L79: =IF(I79="","",SUM(I$26:I79)) -> 40,000.00 | O79: 36,539.73 | R79: =IF(O79="","",SUM(O$26:O79)) -> 605,535.19 | U79: 645,535.19
A80: 54 | B80: 54 | D80: 89 | F80: 6.00% | I80: 0.00 | L80: =IF(I80="","",SUM(I$26:I80)) -> 40,000.00 | O80: 38,732.11 | R80: =IF(O80="","",SUM(O$26:O80)) -> 644,267.30 | U80: 684,267.30
A81: 55 | B81: 55 | D81: 90 | F81: 6.00% | I81: 0.00 | L81: =IF(I81="","",SUM(I$26:I81)) -> 40,000.00 | O81: 41,056.04 | R81: =IF(O81="","",SUM(O$26:O81)) -> 685,323.34 | U81: 725,323.34
A82: 56 | B82: 56 | D82: 91 | F82: 6.00% | I82: 0.00 | L82: =IF(I82="","",SUM(I$26:I82)) -> 40,000.00 | O82: 43,519.40 | R82: =IF(O82="","",SUM(O$26:O82)) -> 728,842.74 | U82: 768,842.74
A83: 57 | B83: 57 | D83: 92 | F83: 6.00% | I83: 0.00 | L83: =IF(I83="","",SUM(I$26:I83)) -> 40,000.00 | O83: 46,130.56 | R83: =IF(O83="","",SUM(O$26:O83)) -> 774,973.30 | U83: 814,973.30
A84: 58 | B84: 58 | D84: 93 | F84: 6.00% | I84: 0.00 | L84: =IF(I84="","",SUM(I$26:I84)) -> 40,000.00 | O84: 48,898.40 | R84: =IF(O84="","",SUM(O$26:O84)) -> 823,871.70 | U84: 863,871.70
A85: 59 | B85: 59 | D85: 94 | F85: 6.00% | I85: 0.00 | L85: =IF(I85="","",SUM(I$26:I85)) -> 40,000.00 | O85: 51,832.30 | R85: =IF(O85="","",SUM(O$26:O85)) -> 875,704.00 | U85: 915,704.00
A86: 60 | B86: 60 | D86: 95 | F86: 6.00% | I86: 0.00 | L86: =IF(I86="","",SUM(I$26:I86)) -> 40,000.00 | O86: 54,942.24 | R86: =IF(O86="","",SUM(O$26:O86)) -> 930,646.24 | U86: 970,646.24

Sheet Readme
D3: Follow the steps to enable your online Retirement Savings Calculator.
C5: >> | D5: Your calculator is ready to use. Following steps are for online use.
C6: 1) | D6: Vist the site below:
D7: http://www.spreadsheetweb.com/getting_started.htm
D8: You will only need the username and password.
C9: 2) | D9: Visit the site below:
D10: https://www4.spreadsheetweb.com/SpreadsheetWEB//
D11: Login to page with your new account information.
C12: 3) | D12: Click "Add Web Application" to upload this file. Your online calculator will be created automatically.
D13: You can simply use the calculator from that link or place it on your website.
C14: >> | D14: Your online Retirement Savings Calculator will look like:
D15: https://www4.spreadsheetweb.com/SpreadSheetWEB/Output.aspx?ApplicationId=6f9082a3-090b-4eb4-b5e2-e42864f37afa
C16: >> | D16: In order to see more online applications created with PSW you can check the link below:
D17: http://www.spreadsheetweb.com/demos.htm
C20: Copyright (c) 2009 Pagos, Inc., http://www.pagos.com/

Sheet ChartData
C2: Chart 1 | I2: Chart 2
C3: Year | D3: Balance | E3: Payments | F3: Interest | I3: Interest | J3: Payments
C4: ='Retirement Calculator'!B26 -> 0 | D4: ='Retirement Calculator'!U26 -> 10,000.00 | E4: ='Retirement Calculator'!L26 -> 10,000.00 | F4: ='Retirement Calculator'!R26 -> 0.00 | I4: ='Retirement Calculator'!I20 -> 72,394.22 | J4: ='Retirement Calculator'!D20 -> 40,000.00
C5: ='Retirement Calculator'!B27 -> 1 | D5: ='Retirement Calculator'!U27 -> 12,600.00 | E5: ='Retirement Calculator'!L27 -> 12,000.00 | F5: ='Retirement Calculator'!R27 -> 600.00
C6: ='Retirement Calculator'!B28 -> 2 | D6: ='Retirement Calculator'!U28 -> 15,356.00 | E6: ='Retirement Calculator'!L28 -> 14,000.00 | F6: ='Retirement Calculator'!R28 -> 1,356.00
C7: ='Retirement Calculator'!B29 -> 3 | D7: ='Retirement Calculator'!U29 -> 18,277.36 | E7: ='Retirement Calculator'!L29 -> 16,000.00 | F7: ='Retirement Calculator'!R29 -> 2,277.36
C8: ='Retirement Calculator'!B30 -> 4 | D8: ='Retirement Calculator'!U30 -> 21,374.00 | E8: ='Retirement Calculator'!L30 -> 18,000.00 | F8: ='Retirement Calculator'!R30 -> 3,374.00
C9: ='Retirement Calculator'!B31 -> 5 | D9: ='Retirement Calculator'!U31 -> 24,656.44 | E9: ='Retirement Calculator'!L31 -> 20,000.00 | F9: ='Retirement Calculator'!R31 -> 4,656.44
C10: ='Retirement Calculator'!B32 -> 6 | D10: ='Retirement Calculator'!U32 -> 28,135.83 | E10: ='Retirement Calculator'!L32 -> 22,000.00 | F10: ='Retirement Calculator'!R32 -> 6,135.83
C11: ='Retirement Calculator'!B33 -> 7 | D11: ='Retirement Calculator'!U33 -> 31,823.98 | E11: ='Retirement Calculator'!L33 -> 24,000.00 | F11: ='Retirement Calculator'!R33 -> 7,823.98
C12: ='Retirement Calculator'!B34 -> 8 | D12: ='Retirement Calculator'!U34 -> 35,733.42 | E12: ='Retirement Calculator'!L34 -> 26,000.00 | F12: ='Retirement Calculator'!R34 -> 9,733.42
C13: ='Retirement Calculator'!B35 -> 9 | D13: ='Retirement Calculator'!U35 -> 39,877.42 | E13: ='Retirement Calculator'!L35 -> 28,000.00 | F13: ='Retirement Calculator'!R35 -> 11,877.42
C14: ='Retirement Calculator'!B36 -> 10 | D14: ='Retirement Calculator'!U36 -> 44,270.07 | E14: ='Retirement Calculator'!L36 -> 30,000.00 | F14: ='Retirement Calculator'!R36 -> 14,270.07
C15: ='Retirement Calculator'!B37 -> 11 | D15: ='Retirement Calculator'!U37 -> 48,926.27 | E15: ='Retirement Calculator'!L37 -> 32,000.00 | F15: ='Retirement Calculator'!R37 -> 16,926.27
C16: ='Retirement Calculator'!B38 -> 12 | D16: ='Retirement Calculator'!U38 -> 53,861.85 | E16: ='Retirement Calculator'!L38 -> 34,000.00 | F16: ='Retirement Calculator'!R38 -> 19,861.85
C17: ='Retirement Calculator'!B39 -> 13 | D17: ='Retirement Calculator'!U39 -> 59,093.56 | E17: ='Retirement Calculator'!L39 -> 36,000.00 | F17: ='Retirement Calculator'!R39 -> 23,093.56
C18: ='Retirement Calculator'!B40 -> 14 | D18: ='Retirement Calculator'!U40 -> 64,639.17 | E18: ='Retirement Calculator'!L40 -> 38,000.00 | F18: ='Retirement Calculator'!R40 -> 26,639.17
C19: ='Retirement Calculator'!B41 -> 15 | D19: ='Retirement Calculator'!U41 -> 70,517.52 | E19: ='Retirement Calculator'!L41 -> 40,000.00 | F19: ='Retirement Calculator'!R41 -> 30,517.52
C20: ='Retirement Calculator'!B42 -> 16 | D20: ='Retirement Calculator'!U42 -> 74,748.57 | E20: ='Retirement Calculator'!L42 -> 40,000.00 | F20: ='Retirement Calculator'!R42 -> 34,748.57
C21: ='Retirement Calculator'!B43 -> 17 | D21: ='Retirement Calculator'!U43 -> 79,233.49 | E21: ='Retirement Calculator'!L43 -> 40,000.00 | F21: ='Retirement Calculator'!R43 -> 39,233.49
C22: ='Retirement Calculator'!B44 -> 18 | D22: ='Retirement Calculator'!U44 -> 83,987.50 | E22: ='Retirement Calculator'!L44 -> 40,000.00 | F22: ='Retirement Calculator'!R44 -> 43,987.50
C23: ='Retirement Calculator'!B45 -> 19 | D23: ='Retirement Calculator'!U45 -> 89,026.75 | E23: ='Retirement Calculator'!L45 -> 40,000.00 | F23: ='Retirement Calculator'!R45 -> 49,026.75
C24: ='Retirement Calculator'!B46 -> 20 | D24: ='Retirement Calculator'!U46 -> 94,368.35 | E24: ='Retirement Calculator'!L46 -> 40,000.00 | F24: ='Retirement Calculator'!R46 -> 54,368.35
C25: ='Retirement Calculator'!B47 -> 21 | D25: ='Retirement Calculator'!U47 -> 100,030.45 | E25: ='Retirement Calculator'!L47 -> 40,000.00 | F25: ='Retirement Calculator'!R47 -> 60,030.45
C26: ='Retirement Calculator'!B48 -> 22 | D26: ='Retirement Calculator'!U48 -> 106,032.28 | E26: ='Retirement Calculator'!L48 -> 40,000.00 | F26: ='Retirement Calculator'!R48 -> 66,032.28
C27: ='Retirement Calculator'!B49 -> 23 | D27: ='Retirement Calculator'!U49 -> 112,394.22 | E27: ='Retirement Calculator'!L49 -> 40,000.00 | F27: ='Retirement Calculator'!R49 -> 72,394.22
C28: ='Retirement Calculator'!B50 -> 24 | D28: ='Retirement Calculator'!U50 -> 119,137.87 | E28: ='Retirement Calculator'!L50 -> 40,000.00 | F28: ='Retirement Calculator'!R50 -> 79,137.87
C29: ='Retirement Calculator'!B51 -> 25 | D29: ='Retirement Calculator'!U51 -> 126,286.14 | E29: ='Retirement Calculator'!L51 -> 40,000.00 | F29: ='Retirement Calculator'!R51 -> 86,286.14
C30: ='Retirement Calculator'!B52 -> 26 | D30: ='Retirement Calculator'!U52 -> 133,863.31 | E30: ='Retirement Calculator'!L52 -> 40,000.00 | F30: ='Retirement Calculator'!R52 -> 93,863.31
C31: ='Retirement Calculator'!B53 -> 27 | D31: ='Retirement Calculator'!U53 -> 141,895.11 | E31: ='Retirement Calculator'!L53 -> 40,000.00 | F31: ='Retirement Calculator'!R53 -> 101,895.11
C32: ='Retirement Calculator'!B54 -> 28 | D32: ='Retirement Calculator'!U54 -> 150,408.81 | E32: ='Retirement Calculator'!L54 -> 40,000.00 | F32: ='Retirement Calculator'!R54 -> 110,408.81
C33: ='Retirement Calculator'!B55 -> 29 | D33: ='Retirement Calculator'!U55 -> 159,433.34 | E33: ='Retirement Calculator'!L55 -> 40,000.00 | F33: ='Retirement Calculator'!R55 -> 119,433.34
C34: ='Retirement Calculator'!B56 -> 30 | D34: ='Retirement Calculator'!U56 -> 168,999.34 | E34: ='Retirement Calculator'!L56 -> 40,000.00 | F34: ='Retirement Calculator'!R56 -> 128,999.34
C35: ='Retirement Calculator'!B57 -> 31 | D35: ='Retirement Calculator'!U57 -> 179,139.31 | E35: ='Retirement Calculator'!L57 -> 40,000.00 | F35: ='Retirement Calculator'!R57 -> 139,139.31
C36: ='Retirement Calculator'!B58 -> 32 | D36: ='Retirement Calculator'!U58 -> 189,887.66 | E36: ='Retirement Calculator'!L58 -> 40,000.00 | F36: ='Retirement Calculator'!R58 -> 149,887.66
C37: ='Retirement Calculator'!B59 -> 33 | D37: ='Retirement Calculator'!U59 -> 201,280.92 | E37: ='Retirement Calculator'!L59 -> 40,000.00 | F37: ='Retirement Calculator'!R59 -> 161,280.92
C38: ='Retirement Calculator'!B60 -> 34 | D38: ='Retirement Calculator'!U60 -> 213,357.78 | E38: ='Retirement Calculator'!L60 -> 40,000.00 | F38: ='Retirement Calculator'!R60 -> 173,357.78
C39: ='Retirement Calculator'!B61 -> 35 | D39: ='Retirement Calculator'!U61 -> 226,159.25 | E39: ='Retirement Calculator'!L61 -> 40,000.00 | F39: ='Retirement Calculator'!R61 -> 186,159.25
C40: ='Retirement Calculator'!B62 -> 36 | D40: ='Retirement Calculator'!U62 -> 239,728.80 | E40: ='Retirement Calculator'!L62 -> 40,000.00 | F40: ='Retirement Calculator'!R62 -> 199,728.80
C41: ='Retirement Calculator'!B63 -> 37 | D41: ='Retirement Calculator'!U63 -> 254,112.53 | E41: ='Retirement Calculator'!L63 -> 40,000.00 | F41: ='Retirement Calculator'!R63 -> 214,112.53
C42: ='Retirement Calculator'!B64 -> 38 | D42: ='Retirement Calculator'!U64 -> 269,359.28 | E42: ='Retirement Calculator'!L64 -> 40,000.00 | F42: ='Retirement Calculator'!R64 -> 229,359.28
C43: ='Retirement Calculator'!B65 -> 39 | D43: ='Retirement Calculator'!U65 -> 285,520.84 | E43: ='Retirement Calculator'!L65 -> 40,000.00 | F43: ='Retirement Calculator'!R65 -> 245,520.84
C44: ='Retirement Calculator'!B66 -> 40 | D44: ='Retirement Calculator'!U66 -> 302,652.09 | E44: ='Retirement Calculator'!L66 -> 40,000.00 | F44: ='Retirement Calculator'!R66 -> 262,652.09
C45: ='Retirement Calculator'!B67 -> 41 | D45: ='Retirement Calculator'!U67 -> 320,811.21 | E45: ='Retirement Calculator'!L67 -> 40,000.00 | F45: ='Retirement Calculator'!R67 -> 280,811.21
C46: ='Retirement Calculator'!B68 -> 42 | D46: ='Retirement Calculator'!U68 -> 340,059.88 | E46: ='Retirement Calculator'!L68 -> 40,000.00 | F46: ='Retirement Calculator'!R68 -> 300,059.88
C47: ='Retirement Calculator'!B69 -> 43 | D47: ='Retirement Calculator'!U69 -> 360,463.48 | E47: ='Retirement Calculator'!L69 -> 40,000.00 | F47: ='Retirement Calculator'!R69 -> 320,463.48
C48: ='Retirement Calculator'!B70 -> 44 | D48: ='Retirement Calculator'!U70 -> 382,091.29 | E48: ='Retirement Calculator'!L70 -> 40,000.00 | F48: ='Retirement Calculator'!R70 -> 342,091.29
C49: ='Retirement Calculator'!B71 -> 45 | D49: ='Retirement Calculator'!U71 -> 405,016.76 | E49: ='Retirement Calculator'!L71 -> 40,000.00 | F49: ='Retirement Calculator'!R71 -> 365,016.76
C50: ='Retirement Calculator'!B72 -> 46 | D50: ='Retirement Calculator'!U72 -> 429,317.77 | E50: ='Retirement Calculator'!L72 -> 40,000.00 | F50: ='Retirement Calculator'!R72 -> 389,317.77
C51: ='Retirement Calculator'!B73 -> 47 | D51: ='Retirement Calculator'!U73 -> 455,076.84 | E51: ='Retirement Calculator'!L73 -> 40,000.00 | F51: ='Retirement Calculator'!R73 -> 415,076.84
C52: ='Retirement Calculator'!B74 -> 48 | D52: ='Retirement Calculator'!U74 -> 482,381.45 | E52: ='Retirement Calculator'!L74 -> 40,000.00 | F52: ='Retirement Calculator'!R74 -> 442,381.45
C53: ='Retirement Calculator'!B75 -> 49 | D53: ='Retirement Calculator'!U75 -> 511,324.33 | E53: ='Retirement Calculator'!L75 -> 40,000.00 | F53: ='Retirement Calculator'!R75 -> 471,324.33
C54: ='Retirement Calculator'!B76 -> 50 | D54: ='Retirement Calculator'!U76 -> 542,003.79 | E54: ='Retirement Calculator'!L76 -> 40,000.00 | F54: ='Retirement Calculator'!R76 -> 502,003.79
C55: ='Retirement Calculator'!B77 -> 51 | D55: ='Retirement Calculator'!U77 -> 574,524.02 | E55: ='Retirement Calculator'!L77 -> 40,000.00 | F55: ='Retirement Calculator'!R77 -> 534,524.02
C56: ='Retirement Calculator'!B78 -> 52 | D56: ='Retirement Calculator'!U78 -> 608,995.46 | E56: ='Retirement Calculator'!L78 -> 40,000.00 | F56: ='Retirement Calculator'!R78 -> 568,995.46
C57: ='Retirement Calculator'!B79 -> 53 | D57: ='Retirement Calculator'!U79 -> 645,535.19 | E57: ='Retirement Calculator'!L79 -> 40,000.00 | F57: ='Retirement Calculator'!R79 -> 605,535.19
C58: ='Retirement Calculator'!B80 -> 54 | D58: ='Retirement Calculator'!U80 -> 684,267.30 | E58: ='Retirement Calculator'!L80 -> 40,000.00 | F58: ='Retirement Calculator'!R80 -> 644,267.30
C59: ='Retirement Calculator'!B81 -> 55 | D59: ='Retirement Calculator'!U81 -> 725,323.34 | E59: ='Retirement Calculator'!L81 -> 40,000.00 | F59: ='Retirement Calculator'!R81 -> 685,323.34
C60: ='Retirement Calculator'!B82 -> 56 | D60: ='Retirement Calculator'!U82 -> 768,842.74 | E60: ='Retirement Calculator'!L82 -> 40,000.00 | F60: ='Retirement Calculator'!R82 -> 728,842.74
C61: ='Retirement Calculator'!B83 -> 57 | D61: ='Retirement Calculator'!U83 -> 814,973.30 | E61: ='Retirement Calculator'!L83 -> 40,000.00 | F61: ='Retirement Calculator'!R83 -> 774,973.30
C62: ='Retirement Calculator'!B84 -> 58 | D62: ='Retirement Calculator'!U84 -> 863,871.70 | E62: ='Retirement Calculator'!L84 -> 40,000.00 | F62: ='Retirement Calculator'!R84 -> 823,871.70
C63: ='Retirement Calculator'!B85 -> 59 | D63: ='Retirement Calculator'!U85 -> 915,704.00 | E63: ='Retirement Calculator'!L85 -> 40,000.00 | F63: ='Retirement Calculator'!R85 -> 875,704.00
C64: ='Retirement Calculator'!B86 -> 60 | D64: ='Retirement Calculator'!U86 -> 970,646.24 | E64: ='Retirement Calculator'!L86 -> 40,000.00 | F64: ='Retirement Calculator'!R86 -> 930,646.24

Sheet PSW_Sheet (hidden)
A1: %3c%3fxml+version%3d%221.0%22+encoding%3d%22utf-16%22%3f%3e%0d%0a%3cPageInputCells+xmlns%3axsi%3d%22http%3a%2f%2fwww.w3.org%2f2001%2fXMLSchema-instance%22+xmlns%3axsd%3d%22http%3a%2f%2fwww.w3.org%2f2001%2fXMLSchema%22%3e%0d%0a++%3cInputCells+InputPrefix%3d%22PSWInput_%22+ListPrefix%3d%22PSWList_%22+CellCount%3d%226%22%3e%0d%0a++++%3cCells%3e%0d%0a++++++%3cAddress%3e%3d'Retirement+Calculator'!%24I%247%3c%2fAddress%3e%0d%0a++++++%3cListItemsAddress+%2f%3e%0d%0a++++++%3cNameIndex%3e0%3c%2fNameIndex%3e%0d%0a++++++%3cIsHidingEnabled%3efalse%3c%2fIsHidingEnabled%3e%0d%0a++++++%3cIsDisablingEnabled%3efalse%3c%2fIsDisablingEnabled%3e%0d%0a++++++%3cRequiresValidation%3efalse%3c%2fRequiresValidation%3e%0d%0a++++++%3cIsRequired%3efalse%3c%2fIsRequired%3e%0d%0a++++++%3cType%3eText+Box%3c%2fType%3e%0d%0a++++++%3cDefaultValue%3e35%3c%2fDefaultValue%3e%0d%0a++++++%3cValueType%3eSystem.Double%3c%2fValueType%3e%0d%0a++++%3c%2fCells%3e%0d%0a++++%3cCells%3e%0d%0a++++++%3cAddress%3e%3d'Retirement+Calculator'!%24I%248%3c%2fAddress%3e%0d%0a++++++%3cListItemsAddress+%2f%3e%0d%0a++++++%3cNameIndex%3e1%3c%2fNameIndex%3e%0d%0a++++++%3cIsHidingEnabled%3efalse%3c%2fIsHidingEnabled%3e%0d%0a++++++%3cIsDisablingEnabled%3efalse%3c%2fIsDisablingEnabled%3e%0d%0a++++++%3cRequiresValidation%3efalse%3c%2fRequiresValidation%3e%0d%0a++++++%3cIsRequired%3efalse%3c%2fIsRequired%3e%0d%0a++++++%3cType%3eText+Box%3c%2fType%3e%0d%0a++++++%3cDefaultValue%3e58%3c%2fDefaultValue%3e%0d%0a++++++%3cValueType%3eSystem.Double%3c%2fValueType%3e%0d%0a++++%3c%2fCells%3e%0d%0a++++%3cCells%3e%0d%0a++++++%3cAddress%3e%3d'Retirement+Calculator'!%24I%249%3c%2fAddress%3e%0d%0a++++++%3cListItemsAddress+%2f%3e%0d%0a++++++%3cNameIndex%3e2%3c%2fNameIndex%3e%0d%0a++++++%3cIsHidingEnabled%3efalse%3c%2fIsHidingEnabled%3e%0d%0a++++++%3cIsDisablingEnabled%3efalse%3c%2fIsDisablingEnabled%3e%0d%0a++++++%3cRequiresValidation%3efalse%3c%2fRequiresValidation%3e%0d%0a++++++%3cIsRequired%3efalse%3c%2fIsRequired%3e%0d%0a++++++%3cType%3eText+Box%3c%2fType%3e%0d%0a++++++%3cDefaultValue%3e10000%3c%2fDefaultValue%3e%0d%0a++++++%3cValueType%3eSystem.Double%3c%2fValueType%3e%0d%0a++++%3c%2fCells%3e%0d%0a++++%3cCells%3e%0d%0a++++++%3cAddress%3e%3d'Retirement+Calculator'!%24I%2410%3c%2fAddress%3e%0d%0a++++++%3cListItemsAddress+%2f%3e%0d%0a++++++%3cNameIndex%3e3%3c%2fNameIndex%3e%0d%0a++++++%3cIsHidingEnabled%3efalse%3c%2fIsHidingEnabled%3e%0d%0a++++++%3cIsDisablingEnabled%3efalse%3c%2fIsDisablingEnabled%3e%0d%0a++++++%3cRequiresValidation%3efalse%3c%2fRequiresValidation%3e%0d%0a++++++%3cIsRequired%3efalse%3c%2fIsRequired%3e%0d%0a++++++%3cType%3eText+Box%3c%2fType%3e%0d%0a++++++%3cDefaultValue%3e6%3c%2fDefaultValue%3e%0d%0a++++++%3cValueType%3eSystem.Double%3c%2fValueType%3e%0d%0a++++%3c%2fCells%3e%0d%0a++++%3cCells%3e%0d%0a++++++%3cAddress%3e%3d'Retirement+Calculator'!%24I%2411%3c%2fAddress%3e%0d%0a++++++%3cListItemsAddress+%2f%3e%0d%0a++++++%3cNameIndex%3e4%3c%2fNameIndex%3e%0d%0a++++++%3cIsHidingEnabled%3efalse%3c%2fIsHidingEnabled%3e%0d%0a++++++%3cIsDisablingEnabled%3efalse%3c%2fIsDisablingEnabled%3e%0d%0a++++++%3cRequiresValidation%3efalse%3c%2fRequiresValidation%3e%0d%0a++++++%3cIsRequired%3efalse%3c%2fIsRequired%3e%0d%0a++++++%3cType%3eText+Box%3c%2fType%3e%0d%0a++++++%3cDefaultValue%3e2000%3c%2fDefaultValue%3e%0d%0a++++++%3cValueType%3eSystem.Double%3c%2fValueType%3e%0d%0a++++%3c%2fCells%3e%0d%0a++++%3cCells%3e%0d%0a++++++%3cAddress%3e%3d'Retirement+Calculator'!%24I%2412%3c%2fAddress%3e%0d%0a++++++%3cListItemsAddress+%2f%3e%0d%0a++++++%3cNameIndex%3e5%3c%2fNameIndex%3e%0d%0a++++++%3cIsHidingEnabled%3efalse%3c%2fIsHidingEnabled%3e%0d%0a++++++%3cIsDisablingEnabled%3efalse%3c%2fIsDisablingEnabled%3e%0d%0a++++++%3cRequiresValidation%3efalse%3c%2fRequiresValidation%3e%0d%0a++++++%3cIsRequired%3efalse%3c%2fIsRequired%3e%0d%0a++++++%3cType%3eText+Box%3c%2fType%3e%0d%0a++++++%3cDefaultValue%3e15%3c%2fDefaultValue%3e%0d%0a++++++%3cValueType%3eSystem.Double%3c%2fValueType%3e%0d%0a++++%3c%2fCells%3e%0d%0a++%3c%2fInputCells%3e%0d%0a%3c%2fPageInputCells%3e
T2: l+Tur%22+WrapText%3d%22False%22+FontSize%3d%2210%22+X%3d%228%22+Y%3d%2286%22+%2f%3e%0d%0a++++++%3cTD+Style%3d%22Class87%22+Merge%3d%22False%22+RowSpan%3d%22%22+ColSpan%3d%22%22+Format%3d%22General%22+Width%3d%2224.75%22+Text%3d%22%22+Height%3d%2212.75%22+Align%3d%22Left%22+CellHasFormula%3d%22False%22+FontName%3d%22Arial+Tur%22+WrapText%3d%22False%22+FontSize%3d%2210%22+X%3d%229%22+Y%3d%2286%22+%2f%3e%0d%0a++++++%3cTD+Style%3d%22Class87%22+Merge%3d%22False%22+RowSpan%3d%22%22+ColSpan%3d%22%22+Format%3d%22General%22+Width%3d%2224.75%22+Text%3d%22%22+Height%3d%2212.75%22+Align%3d%22Left%22+CellHasFormula%3d%22False%22+FontName%3d%22Arial+Tur%22+WrapText%3d%22False%22+FontSize%3d%2210%22+X%3d%2210%22+Y%3d%2286%22+%2f%3e%0d%0a++++++%3cTD+Style%3d%22Class87%22+Merge%3d%22False%22+RowSpan%3d%22%22+ColSpan%3d%22%22+Format%3d%22General%22+Width%3d%2224.75%22+Text%3d%22%22+Height%3d%2212.75%22+Align%3d%22Left%22+CellHasFormula%3d%22False%22+FontName%3d%22Arial+Tur%22+WrapText%3d%22False%22+FontSize%3d%2210%22+X%3d%2211%22+Y%3d%2286%22+%2f%3e%0d%0a++++++%3cTD+Style%3d%22Class87%22+Merge%3d%22False%22+RowSpan%3d%22%22+ColSpan%3d%22%22+Format%3d%22General%22+Width%3d%2224.75%22+Text%3d%22%22+Height%3d%2212.75%22+Align%3d%22Left%22+CellHasFormula%3d%22False%22+FontName%3d%22Arial+Tur%22+WrapText%3d%22False%22+FontSize%3d%2210%22+X%3d%2212%22+Y%3d%2286%22+%2f%3e%0d%0a++++++%3cTD+Style%3d%22Class87%22+Merge%3d%22False%22+RowSpan%3d%22%22+ColSpan%3d%22%22+Format%3d%22General%22+Width%3d%2224.75%22+Text%3d%22%22+Height%3d%2212.75%22+Align%3d%22Left%22+CellHasFormula%3d%22False%22+FontName%3d%22Arial+Tur%22+WrapText%3d%22False%22+FontSize%3d%2210%22+X%3d%2213%22+Y%3d%2286%22+%2f%3e%0d%0a++++++%3cTD+Style%3d%22Class87%22+Merge%3d%22False%22+RowSpan%3d%22%22+ColSpan%3d%22%22+Format%3d%22General%22+Width%3d%2224.75%22+Text%3d%22%22+Height%3d%2212.75%22+Align%3d%22Left%22+CellHasFormula%3d%22False%22+FontName%3d%22Arial+Tur%22+WrapText%3d%22False%22+FontSize%3d%2210%22+X%3d%2214%22+Y%3d%2286%22+%2f%3e%0d%0a++++++%3cTD+Style%3d%22Class87%22+Merge%3d%22False%22+RowSpan%3d%22%22+ColSpan%3d%22%22+Format%3d%22General%22+Width%3d%2224.75%22+Text%3d%22%22+Height%3d%2212.75%22+Align%3d%22Left%22+CellHasFormula%3d%22False%22+FontName%3d%22Arial+Tur%22+WrapText%3d%22False%22+FontSize%3d%2210%22+X%3d%2215%22+Y%3d%2286%22+%2f%3e%0d%0a++++++%3cTD+Style%3d%22Class87%22+Merge%3d%22False%22+RowSpan%3d%22%22+ColSpan%3d%22%22+Format%3d%22General%22+Width%3d%2224.75%22+Text%3d%22%22+Height%3d%2212.75%22+Align%3d%22Left%22+CellHasFormula%3d%22False%22+FontName%3d%22Arial+Tur%22+WrapText%3d%22False%22+FontSize%3d%2210%22+X%3d%2216%22+Y%3d%2286%22+%2f%3e%0d%0a++++++%3cTD+Style%3d%22Class87%22+Merge%3d%22False%22+RowSpan%3d%22%22+ColSpan%3d%22%22+Format%3d%22General%22+Width%3d%2224.75%22+Text%3d%22%22+Height%3d%2212.75%22+Align%3d%22Left%22+CellHasFormula%3d%22False%22+FontName%3d%22Arial+Tur%22+WrapText%3d%22False%22+FontSize%3d%2210%22+X%3d%2217%22+Y%3d%2286%22+%2f%3e%0d%0a++++++%3cTD+Style%3d%22Class87%22+Merge%3d%22False%22+RowSpan%3d%22%22+ColSpan%3d%22%22+Format%3d%22General%22+Width%3d%2224.75%22+Text%3d%22%22+Height%3d%2212.75%22+Align%3d%22Left%22+CellHasFormula%3d%22False%22+FontName%3d%22Arial+Tur%22+WrapText%3d%22False%22+FontSize%3d%2210%22+X%3d%2218%22+Y%3d%2286%22+%2f%3e%0d%0a++++++%3cTD+Style%3d%22Class87%22+Merge%3d%22False%22+RowSpan%3d%22%22+ColSpan%3d%22%22+Format%3d%22General%22+Width%3d%2224.75%22+Text%3d%22%22+Height%3d%2212.75%22+Align%3d%22Left%22+CellHasFormula%3d%22False%22+FontName%3d%22Arial+Tur%22+WrapText%3d%22False%22+FontSize%3d%2210%22+X%3d%2219%22+Y%3d%2286%22+%2f%3e%0d%0a++++++%3cTD+Style%3d%22Class87%22+Merge%3d%22False%22+RowSpan%3d%22%22+ColSpan%3d%22%22+Format%3d%22General%22+Width%3d%2224.75%22+Text%3d%22%22+Height%3d%2212.75%22+Align%3d%22Left%22+CellHasFormula%3d%22False%22+FontName%3d%22Arial+Tur%22+WrapText%3d%22False%22+FontSize%3d%2210%22+X%3d%2220%22+Y%3d%2286%22+%2f%3e%0d%0a++++++%3cTD+Style%3d%22Class87%22+Merge%3d%22False%22+RowSpan%3d%22%22+ColSpan%3d%22%22+Format%3d%22General%22+Width%3d%2224.75%22+Text%3d%22%22+Height%3d%2212.75%22+Align%3d%22Left%22+CellHasFormula%3d%22False%22+FontName%3d%22Arial+Tur%22+WrapText%3d%22False%22+FontSize%3d%2210%22+X%3d%2221%22+Y%3d%2286%22+%2f%3e%0d%0a++++++%3cTD+Style%3d%22Class87%22+Merge%3d%22False%22+RowSpan%3d%22%22+ColSpan%3d%22%22+Format%3d%22General%22+Width%3d%2224.75%22+Text%3d%22%22+Height%3d%2212.75%22+Align%3d%22Left%22+CellHasFormula%3d%22False%22+FontName%3d%22Arial+Tur%22+WrapText%3d%22False%22+FontSize%3d%2210%22+X%3d%2222%22+Y%3d%2286%22+%2f%3e%0d%0a++++++%3cTD+Style%3d%22Class87%22+Merge%3d%22False%22+RowSpan%3d%22%22+ColSpan%3d%22%22+Format%3d%22General%22+Width%3d%2224.75%22+Text%3d%22%22+Height%3d%2212.75%22+Align%3d%22Left%22+CellHasFormula%3d%22False%22+FontName%3d%22Arial+Tur%22+WrapText%3d%22False%22+FontSize%3d%2210%22+X%3d%2223%22+Y%3d%2286%22+%2f%3e%0d%0a++++++%3cTD+Style%3d%22Class87%22+Merge%3d%22False%22+RowSpan%3d%22%22+ColSpan%3d%22%22+Format%3d%22General%22+Width%3d%2224.75%22+Text%3d%22%22+Height%3d%2212.75%22+Align%3d%22Left%22+CellHasFormula%3d%22False%22+FontName%3d%22Arial+Tur%22+WrapText%3d%22False%22+FontSize%3d%2210%22+X%3d%2224%22+Y%3d%2286%22+%2f%3e%0d%0a++++++%3cTD+Style%3d%22Class87%22+Merge%3d%22False%22+RowSpan%3d%22%22+ColSpan%3d%22%22+Format%3d%22General%22+Width%3d%2224.75%22+Text%3d%22%22+Height%3d%2212.75%22+Align%3d%22Left%22+CellHasFormula%3d%22False%22+FontName%3d%22Arial+Tur%22+WrapText%3d%22False%22+FontSize%3d%2210%22+X%3d%2225%22+Y%3d%2286%22+%2f%3e%0d%0a++++++%3cTD+Style%3d%22Class87%22+Merge%3d%22False%22+RowSpan%3d%22%22+ColSpan%3d%22%22+Format%3d%22General%22+Width%3d%2224.75%22+Text%3d%22%22+Height%3d%2212.75%22+Align%3d%22Left%22+CellHasFormula%3d%22False%22+FontName%3d%22Arial+Tur%22+WrapText%3d%22False%22+FontSize%3d%2210%22+X%3d%2226%22+Y%3d%2286%22+%2f%3e%0d%0a++++++%3cTD+Style%3d%22Class87%22+Merge%3d%22False%22+RowSpan%3d%22%22+ColSpan%3d%22%22+Format%3d%22General%22+Width%3d%2224.75%22+Text%3d%22%22+Height%3d%2212.75%22+Align%3d%22Left%22+CellHasFormula%3d%22False%22+FontName%3d%22Arial+Tur%22+WrapText%3d%22False%22+FontSize%3d%2210%22+X%3d%2227%22+Y%3d%2286%22+%2f%3e%0d%0a++++++%3cTD+Style%3d%22Class87%22+Merge%3d%22False%22+RowSpan%3d%22%22+ColSpan%3d%22%22+Format%3d%22General%22+Width%3d%2224.75%22+Text%3d%22%22+Height%3d%2212.75%22+Align%3d%22Left%22+CellHasFormula%3d%22False%22+FontName%3d%22Arial+Tur%22+WrapText%3d%22False%22+FontSize%3d%2210%22+X%3d%2228%22+Y%3d%2286%22+%2f%3e%0d%0a++++++%3cTD+Style%3d%22Class87%22+Merge%3d%22False%22+RowSpan%3d%22%22+ColSpan%3d%22%22+Format%3d%22General%22+Width%3d%2224.75%22+Text%3d%22%22+Height%3d%2212.75%22+Align%3d%22Left%22+CellHasFormula%3d%22False%22+FontName%3d%22Arial+Tur%22+WrapText%3d%22False%22+FontSize%3d%2210%22+X%3d%2229%22+Y%3d%2286%22+%2f%3e%0d%0a++++++%3cTD+Style%3d%22Class87%22+Merge%3d%22False%22+RowSpan%3d%22%22+ColSpan%3d%22%22+Format%3d%22General%22+Width%3d%2224.75%22+Text%3d%22%22+Height%3d%2212.75%22+Align%3d%22Left%22+CellHasFormula%3d%22False%22+FontName%3d%22Arial+Tur%22+WrapText%3d%22False%22+FontSize%3d%2210%22+X%3d%2230%22+Y%3d%2286%22+%2f%3e%0d%0a++++++%3cTD+Style%3d%22Class87%22+Merge%3d%22False%22+RowSpan%3d%22%22+ColSpan%3d%22%22+Format%3d%22General%22+Width%3d%2224.75%22+Text%3d%22%22+Height%3d%2212.75%22+Align%3d%22Left%22+CellHasFormula%3d%22False%22+FontName%3d%22Arial+Tur%22+WrapText%3d%22False%22+FontSize%3d%2210%22+X%3d%2231%22+Y%3d%2286%22+%2f%3e%0d%0a++++++%3cTD+Style%3d%22Class87%22+Merge%3d%22False%22+RowSpan%3d%22%22+ColSpan%3d%22%22+Format%3d%22General%22+Width%3d%2224.75%22+Text%3d%22%22+Height%3d%2212.75%22+Align%3d%22Left%22+CellHasFormula%3d%22False%22+FontName%3d%22Arial+Tur%22+WrapText%3d%22False%22+FontSize%3d%2210%22+X%3d%2232%22+Y%3d%2286%22+%2f%3e%0d%0a++++++%3cTD+Style%3d%22Class87%22+Merge%3d%22False%22+RowSpan%3d%22%22+ColSpan%3d%22%22+Format%3d%22General%22+Width%3d%2224.75%22+Text%3d%22%22+Height%3d%2212.75%22+Align%3d%22Left%22+CellHasFormula%3d%22False%22+FontName%3d%22Arial+Tur%22+WrapText%3d%22False%22+FontSize%3d%2210%22+X%3d%2233%22+Y%3d%2286%22+%2f%3e%0d%0a++++++%3cTD+Style%3d%22Class87%22+Merge%3d%22False%22+RowSpan%3d%22%22+ColSpan%3d%22%22+Format%3d%22General%22+Width%3d%2224.75%22+Text%3d%22%22+Height%3d%2212.75%22+Align%3d%22Left%22+CellHasFormula%3d%22False%22+FontName%3d%22Arial+Tur%22+WrapText%3d%22False%22+FontSize%3d%2210%22+X%3d%2234%22+Y%3d%2286%22+%2f%3e%0d%0a++++%3c%2fTR%3e%0d%0a++%3c%2fTable%3e%0d%0a%3c%2fTables%3e
A3: %3c%3fxml+version%3d%221.0%22+encoding%3d%22utf-16%22%3f%3e%0d%0a%3cPageLayouts+xmlns%3axsi%3d%22http%3a%2f%2fwww.w3.org%2f2001%2fXMLSchema-instance%22+xmlns%3axsd%3d%22http%3a%2f%2fwww.w3.org%2f2001%2fXMLSchema%22+IsTabsVisible%3d%22true%22+InitialPageIndex%3d%220%22%3e%0d%0a++%3cPageLayout+Index%3d%220%22+IsPageHidingEnabled%3d%22false%22+Order%3d%220%22+FileName%3d%221.+Retirement+Calcul%22+IsAjaxEnabled%3d%22false%22+Recipient%3d%22Enter+e-mail+address+here.%22+Location%3d%22Bottom%22+Alignment%3d%22Center%22+AutoResponseEmail%3d%22False%22+NotificationEmail%3d%22False%22+PageForwarding%3d%22False%22+PageForwardingCustomPage%3d%22False%22+PageForwardingIsExternalURL%3d%22False%22+PageForwardingExternalURL%3d%22None%22%3e%0d%0a++++%3cControls%3e%0d%0a++++++%3cPageControl+Enabled%3d%22true%22+Type%3d%22Calculate%22+Order%3d%220%22+CellLink%3d%22%3d'Retirement+Calculator'!%24L%2414%22+Name%3d%22Calculate%22+%2f%3e%0d%0a++++++%3cPageControl+Enabled%3d%22false%22+Type%3d%22Reset%22+Order%3d%221%22+CellLink%3d%22DEFAULT%22+Name%3d%22Reset%22+%2f%3e%0d%0a++++++%3cPageControl+Enabled%3d%22false%22+Type%3d%22Send+Results%22+Order%3d%222%22+CellLink%3d%22DEFAULT%22+Name%3d%22Submit%22+%2f%3e%0d%0a++++++%3cPageControl+Enabled%3d%22false%22+Type%3d%22Save%22+Order%3d%223%22+CellLink%3d%22DEFAULT%22+Name%3d%22Save%22+%2f%3e%0d%0a++++++%3cPageControl+Enabled%3d%22false%22+Type%3d%22Back%22+Order%3d%225%22+CellLink%3d%22DEFAULT%22+Name%3d%22Back%22+%2f%3e%0d%0a++++++%3cPageControl+Enabled%3d%22false%22+Type%3d%22Next%22+Order%3d%224%22+CellLink%3d%22DEFAULT%22+Name%3d%22Next%22+%2f%3e%0d%0a++++%3c%2fControls%3e%0d%0a++%3c%2fPageLayout%3e%0d%0a++%3cApplicationName%3eRetirement+Calculator+(Online)2x%3c%2fApplicationName%3e%0d%0a%3c%2fPageLayouts%3e
A4: .Class85{font-family: Arial Tur; font-size:10pt; color:White;font-weight: bold;border: 0.5pt None Black ;background-color:White; text-align:left;vertical-align:middle;} .Class86{font-family: Arial Tur; font-size:10pt; color:Black;border: 0.5pt None Black ;background-color:White; text-align:left;vertical-align:middle;} .Class87{font-family: Arial Tur; font-size:10pt; color:Black;border: 0.5pt None Black ;background-color:White; text-align:left;vertical-align:bottom;} .Class88{font-family: Arial Tur; font-size:10pt; color:Black;font-weight: bold;border: 0.5pt None Black ;background-color:White; text-align:left;vertical-align:middle;} .Class89{font-family: Arial Tur; font-size:14pt; color:#376091;font-weight: bold;border: 0.5pt None Black ;background-color:White; text-align:center;vertical-align:middle;} .Class90{font-family: Arial Tur; font-size:10pt; color:Black;border-bottom-style: Solid ;border-top-width: 0.5pt ;border-left-width: 0.5pt ;border-right-width: 0.5pt ;border-bottom-width: 1.0pt ;border-top-color: Black ;border-left-color: Black ;border-right-color: Black ;border-bottom-color: #376091 ;background-color:White; text-align:left;vertical-align:middle;} .Class91{font-family: Arial Tur; font-size:10pt; color:Black;font-weight: bold;border-right-style: Solid ;border-top-width: 0.5pt ;border-left-width: 0.5pt ;border-right-width: 1.0pt ;border-bottom-width: 0.5pt ;border-top-color: Black ;border-left-color: Black ;border-right-color: #376091 ;border-bottom-color: Black ;background-color:White; text-align:left;vertical-align:middle;} .Class92{font-family: Arial Tur; font-size:10pt; color:Black;border-top-style: Solid ;border-left-style: Solid ;border-top-width: 1.0pt ;border-left-width: 1.0pt ;border-right-width: 0.5pt ;border-bottom-width: 0.5pt ;border-top-color: #376091 ;border-left-color: #376091 ;border-right-color: Black ;border-bottom-color: Black ;background-color:#E8E9E7; text-align:left;vertical-align:middle;} .Class93{font-family: Arial Tur; font-size:10pt; color:Black;border-top-style: Solid ;border-bottom-style: Solid ;border-top-width: 1.0pt ;border-left-width: 0.5pt ;border-right-width: 0.5pt ;border-bottom-width: 0.5pt ;border-top-color: #376091 ;border-left-color: Black ;border-right-color: Black ;border-bottom-color: #632523 ;background-color:#E8E9E7; text-align:left;vertical-align:middle;} .Class94{font-family: Arial Tur; font-size:10pt; color:Black;border-top-style: Solid ;border-right-style: Solid ;border-top-width: 1.0pt ;border-left-width: 0.5pt ;border-right-width: 1.0pt ;border-bottom-width: 0.5pt ;border-top-color: #376091 ;border-left-color: Black ;border-right-color: #376091 ;border-bottom-color: Black ;background-color:#E8E9E7; text-align:left;vertical-align:middle;} .Class95{font-family: Arial Tur; font-size:10pt; color:Black;border-left-style: Solid ;border-top-width: 0.5pt ;border-left-width: 1.0pt ;border-right-width: 0.5pt ;border-bottom-width: 0.5pt ;border-top-color: Black ;border-left-color: #376091 ;border-right-color: Black ;border-bottom-color: Black ;background-color:White; text-align:left;vertical-align:middle;} .Class96{font-family: Arial Tur; font-size:10pt; color:Black;border-right-style: Solid ;border-top-width: 0.5pt ;border-left-width: 0.5pt ;border-right-width: 1.0pt ;border-bottom-width: 0.5pt ;border-top-color: Black ;border-left-color: Black ;border-right-color: #376091 ;border-bottom-color: Black ;background-color:White; text-align:left;vertical-align:middle;} .Class97{font-family: Arial Tur; font-size:10pt; color:Black;border-left-style: Solid ;border-right-style: Solid ;border-top-width: 0.5pt ;border-left-width: 1.0pt ;border-right-width: 0.5pt ;border-bottom-width: 0.5pt ;border-top-color: Black ;border-left-color: #376091 ;border-right-color: #632523 ;border-bottom-color: Black ;background-color:#E8E9E7; text-align:left;vertical-align:middle;} .Class98{font-family: Arial Tur; font-size:10pt; color:#EEECE1;font-weight: bold;border-top-style: Solid ;border-left-style: Solid ;border-bottom-style: Solid ;border-width: 0.5pt ;border-top-color: #632523 ;border-left-color: #632523 ;border-right-color: Black ;border-bottom-color: #632523 ;background-color:#376091; text-align:left;vertical-align:middle;} .Class99{font-family: Arial Tur; font-size:10pt; color:Black;border-left-style: Solid ;border-right-style: Solid ;border-top-width: 0.5pt ;border-left-width: 0.5pt ;border-right-width: 1.0pt ;border-bottom-width: 0.5pt ;border-top-color: Black ;border-left-color: #632523 ;border-right-color: #376091 ;border-bottom-color: Black ;background-color:#E8E9E7; text-align:left;vertical-align:middle;} .Class100{font-family: Arial Tur; font-size:10pt; color:Black;border-top-style: Solid ;border-left-style: Solid ;border-bottom-style: Solid ;border-width: 0.5pt ;border-top-color: #632523 ;border-left-color: #632523 ;border-right-color: Black ;border-bottom-color: #632523 ;background-color:#DBE5F1; text-align:left;vertical-align:middle;} .Class101{font-family: Arial Tur; font-size:10pt; color:Black;border-top-style: Solid ;border-left-style: Solid ;border-bottom-style: Solid ;border-width: 0.5pt ;border-top-color: #632523 ;border-left-color: #632523 ;border-right-color: Black ;border-bottom-color: #632523 ;background-color:White; text-align:center;vertical-align:middle;} .Class102{font-family: Arial Tur; font-size:10pt; color:Black;border-top-style: Solid ;border-right-style: Solid ;border-bottom-style: Solid ;border-width: 0.5pt ;border-top-color: #632523 ;border-left-color: Black ;border-right-color: #632523 ;border-bottom-color: #632523 ;background-color:White; text-align:left;vertical-align:middle;} .Class103{font-family: Arial Tur; font-size:10pt; color:Black;border-left-style: Solid ;border-bottom-style: Solid ;border-top-width: 0.5pt ;border-left-width: 1.0pt ;border-right-width: 0.5pt ;border-bottom-width: 1.0pt ;border-top-color: Black ;border-left-color: #376091 ;border-right-color: Black ;border-bottom-color: #376091 ;background-color:#E8E9E7; text-align:left;vertical-align:middle;} .Class104{font-family: Arial Tur; font-size:10pt; color:Black;border-top-style: Solid ;border-bottom-style: Solid ;border-top-width: 0.5pt ;border-left-width: 0.5pt ;border-right-width: 0.5pt ;border-bottom-width: 1.0pt ;border-top-color: #632523 ;border-left-color: Black ;border-right-color: Black ;border-bottom-color: #376091 ;background-color:#E8E9E7; text-align:left;vertical-align:middle;} .Class105{font-family: Arial Tur; font-size:10pt; color:Black;border-top-style: Solid ;border-bottom-style: Solid ;border-top-width: 0.5pt ;border-left-width: 0.5pt ;border-right-width: 0.5pt ;border-bottom-width: 1.0pt ;border-top-color: #632523 ;border-left-color: Black ;border-right-color: Black ;border-bottom-color: #376091 ;background-color:#E8E9E7; text-align:center;vertical-align:middle;} .Class106{font-family: Arial Tur; font-size:10pt; color:Black;border-right-style: Solid ;border-bottom-style: Solid ;border-top-width: 0.5pt ;border-left-width: 0.5pt ;border-right-width: 1.0pt ;border-bottom-width: 1.0pt ;border-top-color: Black ;border-left-color: Black ;border-right-color: #376091 ;border-bottom-color: #376091 ;background-color:#E8E9E7; text-align:left;vertical-align:middle;} .Class107{font-family: Arial Tur; font-size:10pt; color:Black;border-top-style: Solid ;border-bottom-style: Solid ;border-top-width: 1.0pt ;border-left-width: 0.5pt ;border-right-width: 0.5pt ;border-bottom-width: 1.0pt ;border-top-color: #376091 ;border-left-color: Black ;border-right-color: Black ;border-bottom-color: #376091 ;background-color:White; text-align:left;vertical-align:middle;} .Class108{font-family: Arial Tur; font-size:10pt; color:Black;border-top-style: Solid ;border-bottom-style: Solid ;border-top-width: 1.0pt ;border-left-width: 0.5pt ;border-right-width: 0.5pt ;border-bottom-width: 1.0pt ;border-top-color: #376091 ;border-left-color: Black ;border-right-color: Black ;border-bottom-color: #376091 ;background-color:White; text-align:center;vertical-align:middle;} .Class109{font-family: Arial Tur; font-size:10pt; color:Black;border-top-style: Solid ;border-left-style: Solid ;border-bottom-style: Solid ;border-width: 0.5pt ;border-top-color: #632523 ;border-left-color: #632523 ;border-right-color: Black ;border-bottom-color: #632523 ;background-color:White; text-align:left;vertical-align:middle;} .Class110{font-family: Arial Tur; font-size:10pt; color:Black;border-top-style: Solid ;border-left-style: Solid ;border-bottom-style: Solid ;border-width: 0.5pt ;border-top-color: #632523 ;border-left-color: #632523 ;border-right-color: Black ;border-bottom-color: #632523 ;background-color:#DBE5F1; text-align:center;vertical-align:middle;} .Class111{font-family: Arial Tur; font-size:10pt; color:#632523;border-top-style: Solid ;border-left-style: Solid ;border-bottom-style: Solid ;border-width: 0.5pt ;border-top-color: #632523 ;border-left-color: #632523 ;border-right-color: Black ;border-bottom-color: #632523 ;background-color:White; text-align:left;vertical-align:middle;} .Class112{font-family: Arial Tur; font-size:10pt; color:#632523;border-top-style: Solid ;border-bottom-style: Solid ;border-width: 0.5pt ;border-top-color: #632523 ;border-left-color: Black ;border-right-color: Black ;border-bottom-color: #632523 ;background-color:White; text-align:center;vertical-align:middle;} .Class113{font-family: Arial Tur; font-size:10pt; color:#632523;border-top-style: Solid ;border-right-style: Solid ;border-bottom-style: Solid ;border-width: 0.5pt ;border-top-color: #632523 ;border-left-color: Black ;border-right-color: #632523 ;border-bottom-color: #632523 ;background-color:White; text-align:center;vertical-align:middle;} .Class114{font-family: Arial Tur; font-size:10pt; color:#4F6228;border-top-style: Solid ;border-left-style: Solid ;border-bottom-style: Solid ;border-width: 0.5pt ;border-top-color: #632523 ;border-left-color: #632523 ;border-right-color: Black ;border-bottom-color: #632523 ;background-color:White; text-align:left;vertical-align:middle;} .Class115{font-family: Arial Tur; font-size:10pt; color:#3F3151;border-top-style: Solid ;border-bottom-style: Solid ;border-width: 0.5pt ;border-top-color: #632523 ;border-left-color: Black ;border-right-color: Black ;border-bottom-color: #632523 ;background-color:White; text-align:center;vertical-align:middle;} .Class116{font-family: Arial Tur; font-size:10pt; color:#4F6228;border-top-style: Solid ;border-right-style: Solid ;border-bottom-style: Solid ;border-width: 0.5pt ;border-top-color: #632523 ;border-left-color: Black ;border-right-color: #632523 ;border-bottom-color: #632523 ;background-color:White; text-align:left;vertical-align:middle;} .Class117{font-family: Arial Tur; font-size:10pt; color:Black;border-left-style: Solid ;border-right-style: Solid ;border-top-width: 0.5pt ;border-left-width: 0.5pt ;border-right-width: 1.0pt ;border-bottom-width: 0.5pt ;border-top-color: Black ;border-left-color: #632523 ;border-right-color: #376091 ;border-bottom-color: Black ;background-color:#E8E9E7; text-align:left;vertical-align:bottom;} .Class118{font-family: Arial Tur; font-size:10pt; color:#376091;font-weight: bold;border-top-style: Solid ;border-left-style: Solid ;border-bottom-style: Solid ;border-width: 0.5pt ;border-top-color: #632523 ;border-left-color: #632523 ;border-right-color: Black ;border-bottom-color: #632523 ;background-color:White; text-align:center;vertical-align:middle;} .Class119{font-family: Arial Tur; font-size:10pt; color:Black;border-top-style: Solid ;border-bottom-style: Solid ;border-top-width: 0.5pt ;border-left-width: 0.5pt ;border-right-width: 0.5pt ;border-bottom-width: 1.0pt ;border-top-color: #632523 ;border-left-color: Black ;border-right-color: Black ;border-bottom-color: #376091 ;background-color:#E8E9E7; text-align:left;vertical-align:bottom;} .Class120{font-family: Arial Tur; font-size:10pt; color:Black;border-top-style: Solid ;border-top-width: 1.0pt ;border-left-width: 0.5pt ;border-right-width: 0.5pt ;border-bottom-width: 0.5pt ;border-top-color: #376091 ;border-left-color: Black ;border-right-color: Black ;border-bottom-color: Black ;background-color:White; text-align:left;vertical-align:middle;} .Class121{font-family: Arial Tur; font-size:10pt; color:#EEECE1;font-weight: bold;border: 0.5pt None Black ;background-color:#376091; text-align:center;vertical-align:middle;} .Class122{font-family: Arial Tur; font-size:10pt; color:White;border: 0.5pt None Black ;background-color:White; text-align:right;vertical-align:middle;} .Class123{font-family: Arial Tur; font-size:10pt; color:#376091;border: 0.5pt None Black ;background-color:#E8E9E7; text-align:center;vertical-align:middle;} .Class124{font-family: Arial Tur; font-size:10pt; color:#632523;border: 0.5pt None Black ;background-color:#E8E9E7; text-align:center;vertical-align:middle;} .Class125{font-family: Arial Tur; font-size:10pt; color:#60497B;border: 0.5pt None Black ;background-color:#E8E9E7; text-align:center;vertical-align:middle;} .Class126{font-family: Arial Tur; font-size:10pt; color:#4A452A;border: 0.5pt None Black ;background-color:#E8E9E7; text-align:center;vertical-align:middle;} .Class127{font-family: Arial Tur; font-size:10pt; color:#376091;border: 0.5pt None Black ;background-color:#DCDEDA; text-align:center;vertical-align:middle;} .Class128{font-family: Arial Tur; font-size:10pt; color:#632523;border: 0.5pt None Black ;background-color:#DCDEDA; text-align:center;vertical-align:middle;} .Class129{font-family: Arial Tur; font-size:10pt; color:#60497B;border: 0.5pt None Black ;background-color:#DCDEDA; text-align:center;vertical-align:middle;} .Class130{font-family: Arial Tur; font-size:10pt; color:#4A452A;border: 0.5pt None Black ;background-color:#DCDEDA; text-align:center;vertical-align:middle;}
A5: tr-TR
A6: 2.0.0.0
A8: UEsFBgAAAAAAAAAAAAAAAAAAAAAAAA%3d%3d
A11: %3c%3fxml+version%3d%221.0%22+encoding%3d%22utf-16%22%3f%3e%0d%0a%3cSavingCells+xmlns%3axsi%3d%22http%3a%2f%2fwww.w3.org%2f2001%2fXMLSchema-instance%22+xmlns%3axsd%3d%22http%3a%2f%2fwww.w3.org%2f2001%2fXMLSchema%22+CellCount%3d%220%22+SavingCellPrefix%3d%22PSWSavingCell_%22+%2f%3e
